Cogmind - Beta 11 @@@ ROGUE MODE // 2022.03.18 @ 11:44:57 Player: BOTHUNTER Result: Destroyed by G-47 Trooper with Particle Gun Performance ------------- Evolutions (2) 1000 Regions Visited (5) 1000 Robots Destroyed (22) 110 Value Destroyed (663) 663 Prototype IDs (4) 80 Alien Tech Used (0) 0 Bonus (328) 328 TOTAL SCORE: 3181 Bonus ------- High Alert Combat Kills 28 Aligned with FarCom 300 Cogmind --------- Core Integrity 0/550 Matter 92/300 Energy 100/100 System Corruption 0% Temperature Cool (10) Movement Flying (40) Location -8/Materials Parts ------- > --- POWER (1) -------- (None) > --- PROPULSION (2) --- Improved Flight Unit > --- UTILITY (6) ------ Small Storage Unit Machine Analyzer Advanced Visual Processing Unit Targeting Computer Hacking Suite > --- WEAPON (2) ------- (None) > --- INVENTORY (8) ---- Light Ion Engine Lightning Gun Guided Plasma Cannon Rocket Launcher Improved Datajack Plasma Flamer Hammer Peak State ------------ > --- POWER ------------ (None) > --- PROPULSION ------- Flight Unit Flight Unit > --- UTILITY ---------- Small Storage Unit Skeleton Box > --- WEAPON ----------- Medium Laser Guided Plasma Cannon > --- INVENTORY -------- Light Ion Engine Light Ion Engine Flight Unit EM Pulse Gun Medium Laser Small Laser Grenade Launcher [Rating: 18] Favorites ----------- Power None Propulsion Flight Unit Flight Unit Flight Unit Utility Small Storage Unit Device Skeleton Box Storage Small Storage Unit Processor Advanced Visual Processing Unit Hackware Hacking Suite Weapon Medium Laser Energy Gun Medium Laser Energy Cannon Guided Plasma Cannon Launcher Rocket Launcher Special Weapon Plasma Flamer Build | -11 -10 -10 -10 -9 -8 ------- Run | Scr Mat Min Exi Min Mat Slots Evolved 4 | . . . . . 4 Power . | . . . . . . Propulsion . | . . . . . . Utility 4 | . . . . . 4 Weapon . | . . . . . . Parts Attached 31 | 3 3 2 2 7 14 Power . | . . . . . . Engine . | . . . . . . Core . | . . . . . . Reactor . | . . . . . . Propulsion 6 | . . 2 . 2 2 Treads . | . . . . . . Leg . | . . . . . . Wheel . | . . . . . . Hover . | . . . . . . Flight 6 | . . 2 . 2 2 Utility 6 | 1 . . 1 . 4 Device 1 | . . . 1 . . Storage 1 | 1 . . . . . Processor 3 | . . . . . 3 Hackware 1 | . . . . . 1 Protection . | . . . . . . Artifact . | . . . . . . Weapon 19 | 2 3 . 1 5 8 Energy Gun 9 | 2 3 . . 2 2 Energy Cannon 4 | . . . 1 2 1 Ballistic Gun . | . . . . . . Ballistic Cannon . | . . . . . . Launcher 4 | . . . . . 4 Special Weapon 2 | . . . . 1 1 Impact Weapon . | . . . . . . Slashing Weapon . | . . . . . . Piercing Weapon . | . . . . . . Special Melee Weapon . | . . . . . . Unidentified Prototypes 4 | . . . 2 . 2 Parts Lost 6 | . . . . 2 4 Power . | . . . . . . Propulsion 4 | . . . . 1 3 Utility . | . . . . . . Weapon 2 | . . . . 1 1 Highest Loss Streak 3 | . . . . 2 3 To Critical Strikes . | . . . . . . Average Slot Usage (%) 43 | . 29 61 57 51 33 Flight 15 | . . 23 28 24 8 Storage 12 | . 14 14 14 14 9 Processor 3 | . . . . . 10 Hackware 1 | . . . . . 5 Energy Gun 6 | . 15 23 4 6 . Energy Cannon 1 | . . . 9 1 . Special Weapon 1 | . . . . 3 . Naked Turns . | . . . . . . Heaviest Build 15 | 9 9 9 15 15 9 Greatest Support 8 | 3 3 8 8 8 8 Greatest Overweight (x) 2 | 2 2 2 1 1 2 Average Overweight (x) . | 1 1 . . . . Largest Inventory Capacity 8 | 8 8 8 8 8 8 Average Capacity 7 | 7 8 8 8 8 8 Most Carried 8 | 5 6 7 7 8 8 Average Carried 5 | 2 4 5 7 7 5 Final Capacity 8 | 8 8 8 8 8 8 Final Carried 7 | 5 4 7 7 7 7 Class Distribution -------------------- 93% | Mutant 6% | Scout Dominant Class ---------------- Mutant | -10/Materials Mutant | -10/Mines Mutant | -10/Exiles Mutant | -9/Mines Mutant | -8/Materials Resources | -11 -10 -10 -10 -9 -8 ----------- Run | Scr Mat Min Exi Min Mat Matter Collected 458 | 210 50 20 . 90 88 Remotely . | . . . . . . Salvage Created 522 | . 83 50 . 179 210 Parts 29 | . 5 1 . 8 15 Haulers Intercepted . | . . . . . . Recyclers Shooed . | . . . . . . Parts Field Recycled . | . . . . . . Retrieved Matter . | . . . . . . Parts Self-Destructed . | . . . . . . Prevented . | . . . . . . Kills | -11 -10 -10 -10 -9 -8 ------- Run | Scr Mat Min Exi Min Mat Combat Hostiles Destroyed 19 | . 1 1 . 6 11 Guns 5 | . 1 1 . 3 . Cannons 3 | . . . . 2 1 AOE 10 | . . . . 1 9 Classes Destroyed 9 | . 2 . . 2 5 Worker 1 | . . . . . 1 Recycler 1 | . . . . . 1 Operator 2 | . 2 . . . . Watcher 1 | . . . . . 1 Swarmer 5 | . . . . . 5 Grunt 7 | . 1 1 . 2 3 Duelist 2 | . . . . 2 . Sentry 3 | . . . . . 3 Assembled 2 | . . . . 2 . Best Kill Streak 5 | . 1 1 . 2 5 Combat Bots Only 3 | . 1 1 . 2 3 Max Kills in Single Turn 2 | . 1 1 . 1 2 Gunslinging . | . . . . . . Exploded 2 | . . . . 1 2 Melee . | . . . . . . Uniques/NPCs Destroyed . | . . . . . . Combat | -11 -10 -10 -10 -9 -8 -------- Run | Scr Mat Min Exi Min Mat Damage Taken 1131 | . 102 52 . 123 854 Core 619 | . 59 . . 10 550 Absorbed by Shields . | . . . . . . Core Remaining (%) 86 | 100 . . . 72 . Volleys Fired 61 | . 8 2 . 29 22 Largest 2 | . 2 2 . 1 1 Hottest 120 | . 100 100 . 120 120 Shots Fired 70 | . 15 4 . 29 22 Gun 36 | . 15 4 . 15 2 Cannon 9 | . . . . 8 1 Launcher 16 | . . . . . 16 Special 9 | . . . . 6 3 Kinetic . | . . . . . . Thermal 47 | . 14 4 . 25 4 Explosive 16 | . . . . . 16 Electromagnetic 7 | . 1 . . 4 2 Robot Hit Streak 6 | . 4 1 . 6 4 Robot Miss Streak 3 | . 3 3 . 2 2 Penetration Max . | . . . . . . Secondary Targets . | . . . . . . Shots Hit Robots 31 | . 8 1 . 14 8 Core Hits 37 | . 6 1 . 8 22 Critical Kills . | . . . . . . Critical Parts Destroyed . | . . . . . . Critical Strikes 3 | . . . . 2 1 Burn 3 | . . . . 2 1 Melee Attacks . | . . . . . . Impact . | . . . . . . Slashing . | . . . . . . Piercing . | . . . . . . Sneak Attacks . | . . . . . . Combat Hostiles . | . . . . . . Follow-up Attacks . | . . . . . . Damage Inflicted 1308 | . 101 12 . 408 787 Guns 247 | . 101 12 . 122 12 Cannons 272 | . . . . 234 38 Explosions 698 | . . . . . 698 Melee . | . . . . . . Ramming . | . . . . . . Kinetic . | . . . . . . Thermal 560 | . 86 12 . 385 77 Explosive 698 | . . . . . 698 Electromagnetic 50 | . 15 . . 23 12 Impact . | . . . . . . Slashing . | . . . . . . Piercing . | . . . . . . Highest Corruption . | . . . . . . Average Corruption . | . . . . . . Corruption Purged . | . . . . . . Corruption Blocked . | . . . . . . Overload Shots . | . . . . . . Overflow Damage 2 | . . . . 2 . Projectiles 2 | . . . . 2 . Explosions . | . . . . . . Melee . | . . . . . . Knockbacks . | . . . . . . Impact . | . . . . . . Kinetic . | . . . . . . Secondary . | . . . . . . Self-Inflicted Damage 44 | . . . . . 44 Shots 1 | . . . . . 1 Rammed 1 | . . . . . 1 Targets Rammed 1 | . . . . . 1 Kicked . | . . . . . . Crushed . | . . . . . . Highest Temperature 222 | . 189 60 . 222 119 Average Temperature 63 | . 91 29 . 60 50 Received Heat Transfer 357 | . 60 . . 18 279 Siege Activations . | . . . . . . Robots Corrupted . | . . . . . . Combat Hostiles . | . . . . . . Parts Fried . | . . . . . . Impact Corruptions . | . . . . . . Robots Melted 1 | . . . . . 1 Combat Hostiles 1 | . . . . . 1 Parts Melted 4 | . 1 . . 1 2 Heat Transferred 2100 | . 259 37 . 1324 480 Parts Sabotaged . | . . . . . . Parts Stolen . | . . . . . . Parts Stripped . | . . . . . . Power Chain Reactions . | . . . . . . Missiles Intercepted . | . . . . . . Alert | -11 -10 -10 -10 -9 -8 ------- Run | Scr Mat Min Exi Min Mat Peak Influence 587 | . 115 109 . 200 587 Initial 78 | . . 44 . . 78 Average 140 | . 66 91 . 62 306 Maximum Alert Level 2 | . . . . 1 2 Low Security (%) 79 | 100 100 100 . 91 44 Level 1 8 | . . . . 8 18 Level 2 11 | . . . . . 37 Level 3 . | . . . . . . Level 4 . | . . . . . . Level 5 . | . . . . . . High Security . | . . . . . . Max Security . | . . . . . . Squads Dispatched 10 | . 4 . . . 6 Investigation 5 | . 1 . . . 4 Extermination . | . . . . . . Reinforcement 5 | . 3 . . . 2 Assault . | . . . . . . Garrison . | . . . . . . Intercept . | . . . . . . Searches Triggered . | . . . . . . Construction Impeded 1 | . . . . . 1 Haulers Reinforced . | . . . . . . Active Scanning Responses . | . . . . . . Cargo Convoy Interrupts . | . . . . . . Stealth | -11 -10 -10 -10 -9 -8 --------- Run | Scr Mat Min Exi Min Mat Distress Signals 6 | . 3 . . . 3 Communications Jammed . | . . . . . . Distress Signals . | . . . . . . Times Spotted 66 | . 4 4 . 25 33 Peak Tracking Total 11 | . 3 3 . 11 9 Tactical Retreats 12 | . 1 1 . 7 3 Traps | -11 -10 -10 -10 -9 -8 ------- Run | Scr Mat Min Exi Min Mat Traps Triggered . | . . . . . . Indirectly . | . . . . . . Trap Hack Attempts . | . . . . . . Triggered . | . . . . . . Disarmed . | . . . . . . Reprogrammed . | . . . . . . Reused 2 | . . . . 2 . Traps Extracted . | . . . . . . Installed 4 | . . . . 4 . Triggered 3 | . . . . 3 . Most Traps Carried 2 | . . . . 2 . Machines | -11 -10 -10 -10 -9 -8 ---------- Run | Scr Mat Min Exi Min Mat Machines Disabled 3 | . . . . . 3 Max in Single Turn 1 | . . . . . 1 Machines Sabotaged . | . . . . . . Garrisons Compromised . | . . . . . . Overloaded Fab Kills . | . . . . . . Hacking | -11 -10 -10 -10 -9 -8 --------- Run | Scr Mat Min Exi Min Mat Machines Accessed 12 | . 2 . . . 10 Terminals 8 | . 1 . . . 7 Fabricators . | . . . . . . Repair Stations . | . . . . . . Recycling Units 2 | . 1 . . . 1 Scanalyzers 2 | . . . . . 2 Garrison Access . | . . . . . . Total Hacks 36 | . 9 . . . 27 Successful 25 | . 6 . . . 19 Failed 11 | . 3 . . . 8 Catastrophic . | . . . . . . Database Lockouts . | . . . . . . Manual 28 | . 6 . 1 . 21 Terminals 31 | . 7 . . . 24 Fabricators . | . . . . . . Repair Stations . | . . . . . . Recycling Units 3 | . 2 . . . 1 Scanalyzers 2 | . . . . . 2 Garrison Access . | . . . . . . Terminal Hacks 11 | . 2 . . . 9 Part Schematic 2 | . . . . . 2 Robot Analysis 2 | . . . . . 2 Branch Access Points 1 | . . . . . 1 Terminal Index 1 | . . . . . 1 Locate Traps 3 | . 1 . . . 2 Zone Layout 2 | . 1 . . . 1 Fabricator Hacks . | . . . . . . Repair Station Hacks . | . . . . . . Recycling Unit Hacks . | . . . . . . Scanalyzer . | . . . . . . Garrison Access Hacks . | . . . . . . Unauthorized Hacks 14 | . 4 . . . 10 Terminals 10 | . 3 . . . 7 Track 1 | . 1 . . . . Assimilate 1 | . . . . . 1 Botnet 6 | . 1 . . . 5 Operators 2 | . 1 . . . 1 Fabricators . | . . . . . . Repair Stations . | . . . . . . Recycling Units 2 | . 1 . . . 1 Tunnel 2 | . 1 . . . 1 Scanalyzers 2 | . . . . . 2 Extract 2 | . . . . . 2 Garrison Access . | . . . . . . Data Cores Recovered . | . . . . . . Used . | . . . . . . Hacking Detections 7 | . 1 . . . 6 Full Trace Events 1 | . . . . . 1 Feedback Events . | . . . . . . Feedback Blocked . | . . . . . . Robot Schematics Acquired . | . . . . . . Robots Built . | . . . . . . Authchips . | . . . . . . Time . | . . . . . . Total Robot Build Rating . | . . . . . . Part Schematics Acquired 9 | . . . . . 9 Parts Built . | . . . . . . Authchips . | . . . . . . Time . | . . . . . . Total Part Build Rating . | . . . . . . Parts Repaired . | . . . . . . Time . | . . . . . . Parts Recycled . | . . . . . . Recycled Matter . | . . . . . . Retrieved Matter . | . . . . . . Retrieved Components . | . . . . . . Parts Scanalyzed . | . . . . . . Part Schematics Acquired . | . . . . . . Parts Damaged . | . . . . . . Bothacking | -11 -10 -10 -10 -9 -8 ------------ Run | Scr Mat Min Exi Min Mat Used RIF Installer . | . . . . . . Robots Hacked . | . . . . . . Non-combat . | . . . . . . Combat . | . . . . . . Robot Hacks Applied . | . . . . . . Relay Couplers Released . | . . . . . . Fabnet Peak Effective % . | . . . . . . Robots Rewired . | . . . . . . Allies Hacked . | . . . . . . Hacks Repelled . | . . . . . . Allies | -11 -10 -10 -10 -9 -8 -------- Run | Scr Mat Min Exi Min Mat Total Allies . | . . . . . . Largest Group . | . . . . . . Highest-Rated Group . | . . . . . . Highest-Rated Ally . | . . . . . . Total Orders . | . . . . . . Ally Attacks . | . . . . . . Total Damage . | . . . . . . Kills . | . . . . . . Allies Corrupted . | . . . . . . Allies Melted . | . . . . . . Intel | -11 -10 -10 -10 -9 -8 ------- Run | Scr Mat Min Exi Min Mat Robot Analysis Total 2 | . . . . . 2 Derelict Logs Recovered 2 | . . . . 2 . Drone Launches . | . . . . . . Drone Recoveries . | . . . . . . Exploration | -11 -10 -10 -10 -9 -8 ------------- Run | Scr Mat Min Exi Min Mat Turns Passed 1633 | 66 251 117 160 574 465 Spaces Moved 1732 | 47 166 128 215 598 578 Core 336 | 47 166 8 . . 115 Treads . | . . . . . . Legs . | . . . . . . Wheels . | . . . . . . Hover . | . . . . . . Flight 1396 | . . 120 215 598 463 Fastest Speed 34 | 50 100 37 37 34 37 Average Speed 65 | 121 123 70 73 53 54 Slowest Speed 200 | 150 150 200 117 120 150 Overloaded Moves . | . . . . . . Propulsion Burnouts . | . . . . . . Robots Hopped 19 | . . 1 . 1 17 Cave-ins Triggered . | . . . . . . Exploration Rate (%) 47 | 5 33 51 62 84 51 Regions Visited 5 Branch Regions 3 Pre-discovered Areas 4 | . 1 . . 2 1 Known Exits Taken . | . . . . . . Unknown Exits Taken 5 | 1 1 1 1 1 . Scrap Searched 2 | . . 1 . 1 . Spaces Dug 14 | . . . . . 14 Terrain Destroyed 100 | . . . . 1 99 Melee . | . . . . . . Projectile 1 | . . . . 1 . AOE 99 | . . . . . 99 Terrain Rammed . | . . . . . . Walls Destroyed . | . . . . . . Machines Disabled . | . . . . . . Actions | -11 -10 -10 -10 -9 -8 --------- Run | Scr Mat Min Exi Min Mat Total 2130 | 55 197 148 218 820 692 Wait 289 | . 20 15 . 174 80 Move 1690 | 46 165 125 214 595 545 Hop 18 | . . 1 . 1 16 Pick Up 12 | 4 . 2 . 2 4 Fast Attach 15 | 2 1 2 2 2 6 Attach 15 | 1 2 . . 4 8 Detach 16 | 2 1 1 . 5 7 Swap 1 | . . . . 1 . Drop 8 | . . . 2 3 3 Fire 61 | . 8 2 . 29 22 Melee . | . . . . . . Ram 1 | . . . . . 1 Kick . | . . . . . . Crush . | . . . . . . Escape Stasis . | . . . . . . Rewire . | . . . . . . Trap 4 | . . . . 4 . Miscellaneous . | . . . . . . Route ------- -11/Scrapyard -10/Materials -10/Mines (discovered 2 exits: [*Mat] / *Exi) -10/Exiles -9/Mines -8/Materials (discovered 1 exit: Sto) History --------- Turn | Location | Event 11 | -11/Scrapyard | Discovered new exit (range 16) 67 | -11/Scrapyard | Entered Materials 257 | -10/Materials | Discovered new exit (range 16) 267 | -10/Materials | Met 8R-AWN 318 | -10/Materials | Build established: Mutant 318 | -10/Materials | Entered Mines 320 | -10/Mines | Followed 8R-AWN into the Mines 401 | -10/Mines | Discovered new exit (range 8) 425 | -10/Mines | Discovered new exit (range 5) 435 | -10/Mines | Entered Exiles 445 | -10/Exiles | Welcomed by 8R-AWN 451 | -10/Exiles | Met EX-HEX 462 | -10/Exiles | Met EX-BIN 467 | -10/Exiles | Aligned with FarCom system 468 | -10/Exiles | Given EX-Vault access code 477 | -10/Exiles | Opened EX-Vault 479 | -10/Exiles | Found Prototype Device 479 | -10/Exiles | Identified Skeleton Box 482 | -10/Exiles | Found Prototype Energy Cannon 482 | -10/Exiles | Identified Gui. Plasma Cannon 508 | -10/Exiles | Warned to stay clear of 0b10 Research branches 543 | -10/Exiles | Met EX-DEC 581 | -10/Exiles | Discovered new exit (range 14) 595 | -10/Exiles | Left Exiles lab with Gui. Plasma Cannon 595 | -10/Exiles | Entered Mines 640 | -9/Mines | Met a Derelict bent on vengeance 766 | -9/Mines | Assembled infested the area 771 | -9/Mines | Assisted by a Guerilla fighting off Assembled 868 | -9/Mines | Found a hidden stash of uninstalled traps 961 | -9/Mines | Learned location of Storage (-8) 967 | -9/Mines | A weapon hastily lodged in a ceiling crevice suddenly fell to the ground 996 | -9/Mines | Discovered new exit (range 10) 1169 | -9/Mines | Entered Materials 1169 | -8/Materials | Evolved 4 slots: Utility x4 1317 | -8/Materials | Lost 3 parts (2n1w) 1366 | -8/Materials | Core integrity fell below 50% 1496 | -8/Materials | Identified exit to Storage 1584 | -8/Materials | Core integrity fell below 20% 1634 | -8/Materials | Destroyed by G-47 Trooper with Particle Gun Last Messages --------------- 01595_ ALERT: Hostiles spotted, dispatching reinforcements to Terminal M003. 01598_ K-01 Serf collects debris. 01600_ U-05 Engineer lays Concrete. 01602_ U-05 Engineer builds a Wall. 01605_ T-07 Excavator is excavating. 01617_ U-05 Engineer builds a Wall. 01629_ Connecting with Scanalyzer... >>Force(Extract) EXTRACTED[Hvy. EM Pulse Gun] EXTRACTED[Seismic Detector] EXTRACTED[Med. Matter Pod] EXTRACTED[Nuclear Core] EXTRACTED[Imp. Aluminum Leg] 01629_ ALERT: Suspicious activity at Scanalyzer M002. Dispatching Investigation squad. 01631_ Connecting with Recycling Unit... >>Force(Tunnel) DISCOVERED[-5/Archives] 01631_ ALERT: Suspicious activity at Recycling Unit M002. Dispatching Investigation squad. Map ----- +----------------------------------------------------+ | ??# Y"# #??# "" # #??###?????? | | ??# ! ""# ############/##### ############ | | ??# # | | ??########### | | ????????????# | | ????????????############### ## ############### | | ??????????????????????#[ # % #?????????? | | ??????????????????????#[[ # " ! #?????????? | | ??????????????????????#!! Y # #?????????? | | ??????????????????????#!! # #????????? | | ??????????????????????#[[ / % #????????? | | ??????????????????????#[[ # ! [ #????????? | | ??????????????????????##### #### ##????????? | | ??????????????????????????# g #??# #?????????? | | ??????????????????????????#g g#??######?????????? | | ??????????????????????????#" #?????????????????? | | ??????????????????????????#%" #?????????????????? | | ??????????????????????????#" #?????????????????? | | ??????????????????????????# #?????????????????? | | ??????????????????????????# #?????????????????? | | ??????????????????????????# #?????????????????? | | ??????????????????????????# #?????????????????? | | ????????????###############r ####??????????????? | | ????????????# !!##?????????????? | | ????????????# !#?????????????? | | ????????????# @ g !#?????????????? | | ????????????# ##########g#### !#?????????????? | | ????????????????????# !# !#?????????????? | | ????????????????????# ! #!!##?????????????? | | ??????????????????### [####??????????????? | | ????????gg????????#"" #?????????????????? | | ?????????gg???????#"Y #?????????????????? | | ??????????????g???#"" "" "" Y #?????????????????? | | ??????????????g???### ""S"" #?????????????????? | | ????????????????????# """" #?????????????????? | | ????????????????????######## ##?????????????????? | | ????????????????????????????##??????????????????? | | ????????????????????????????????????????????????? | | ????????????????????????????????????????????????? | | ????????????????????????????????????????????????? | | ????????????????????????????????????????????????? | | ????????????????????????????????????????????????? | | ????????????????????????????????????????????????? | | ????????????????????????????????????????????????? | | ????????????????????????????????????????????????? | | ????????????????????????????????????????????????? | | ????????????????????????????????????????????????? | | ????????????????????????????????????????????????? | | ????????????????????????????????????????????????? | | ????????????????????????????????????????????????? | +----------------------------------------------------+ Best States ------------- Heat Dissipation 31 Energy Generation 5 Energy Capacity 100 Matter Stores 300 Matter Capacity 300 Sight Range 20 Terrain Scan Density 10 Evasion (%) 63 Targeting Accuracy 5 Offensive Hacking 10 Item Schematics ----------------- Imp. Flight Unit | -8/Materials | Hacked Hacking Suite | -8/Materials | Hacked Flight Unit | -8/Materials | Extracted Lrg. Matter Pod | -8/Materials | Extracted Hvy. EM Pulse Gun | -8/Materials | Extracted Seismic Detector | -8/Materials | Extracted Med. Matter Pod | -8/Materials | Extracted Nuclear Core | -8/Materials | Extracted Imp. Aluminum Leg | -8/Materials | Extracted Robot Schematics ------------------ None Fabricated ------------ Nothing Alien Tech Used ----------------- None Achievements -------------- None Challenges ------------ None Game ------ Seed CentriumPropulsionInjector Manual? 0 Play Time 00:34:52 Cumulative 152.9 hours Start 2022.03.18 @ 11:09:40 End 2022.03.18 @ 11:44:57 Sessions 1 Manual Loads 0 Difficulty Rogue Special Mode None Game No. 226 Rogue 202 Adventurer 22 Explorer 2 Win Type - Total 1 Types 1/0/0/0/0/0/0/0/0 Lore% 49 Gallery% 55 Achievement% 45 Wizard Run 0 Options --------- ASCII 0 Keyboard 0 Movement Numpad Keybinds 0 Fullscreen 1 Font 14/SmallcapsGlow Map View 84x54 Tactical HUD 1 Map Filters NONE Filters NONE Steam 1 RUN: 6cf6e2c7-428e-4c59-93a0-88d21e324305